bitfinex/quotes_SOLUSD_20250901
["timestamp","ask_amount","ask_price","bid_price","bid_amount"]
[1756732453641,43.91035697,200.0,199.99,3.729285]
[1756732454352,43.85035697,200.0,199.99,3.729285]
[1756732454651,69.85035697,200.0,199.99,3.729285]
[1756732454847,65.64,200.0,199.99,4.409285]
[1756732455153,18.7667588,200.04,199.99,4.409285]
[1756732455344,26.0,200.01,200.0,4.41042443]
[1756732455654,65.64,200.01,200.0,4.41042443]
[1756732456349,26.0,200.01,200.0,4.41042443]
[1756732457428,65.62,200.01,200.0,4.41042443]
[1756732458349,65.62,200.01,200.0,3.73042443]
[1756732458661,69.83035697,200.01,200.0,3.73042443]
[1756732459161,74.83010698,200.01,200.0,3.73042443]
[1756732461050,65.62,200.01,200.0,3.73042443]
[1756732462347,74.83010698,200.01,200.0,3.73042443]
[1756732462950,74.83010698,200.01,200.0,3.73302069]
[1756732463248,13.76775558,200.04,200.0,4.41302069]
[1756732463448,4.35251854,200.02,200.01,3.73302069]
[1756732464732,30.35251854,200.02,200.01,3.73302069]
[1756732464945,74.97201858,200.02,200.01,3.73302069]
[1756732466235,30.35251854,200.02,200.01,3.73302069]
[1756732466439,69.97251854,200.02,200.01,3.73302069]
[1756732466648,74.97201858,200.02,200.01,3.73302069]
[1756732467066,35.35201858,200.02,200.01,3.73302069]
[1756732467362,74.97201858,200.02,200.01,3.73302069]
[1756732468664,0.03,200.04,200.01,4.41302069]
[1756732468840,0.03,200.04,200.03,4.21035697]
[1756732469040,0.03,200.04,200.03,7.94337766]
[1756732469255,131.42737876,200.05,200.03,8.62337766]
[1756732469455,131.42737876,200.05,200.04,4.41302069]
[1756732471667,0.03,200.06,200.04,8.62337766]
[1756732471843,0.03,200.06,200.05,8.62337766]
[1756732472669,0.03,200.06,200.05,13.62212797]
[1756732473374,0.03,200.06,200.05,9.88910728]
[1756732473665,0.03,200.06,200.05,13.62548357]
[1756732474046,0.03,200.06,200.05,9.88910728]
[1756732474249,0.03,200.06,200.05,13.62384074]
[1756732474466,0.03,200.06,200.05,13.62282998]
[1756732476641,0.03,200.06,200.05,9.41247301]
[1756732476846,0.03,200.06,200.05,13.62282998]
[1756732479368,48.82711152,200.13,200.08,4.21035697]
[1756732479572,0.71,200.12,200.09,3.7337227]
[1756732479760,0.71,200.12,200.1,3.7337227]
[1756732479952,0.71,200.12,200.11,3.7337227]
[1756732480575,40.31,200.12,200.11,3.7337227]
[1756732481080,40.45216157,200.12,200.11,3.7337227]
[1756732481298,44.66251854,200.12,200.11,3.7337227]
[1756732481587,49.65952033,200.12,200.11,3.7337227]
[1756732481881,63.25511434,200.12,200.11,3.7337227]
[1756732482086,59.04475737,200.12,200.11,3.7337227]
[1756732482264,63.25511434,200.12,200.11,3.7337227]
[1756732484082,30.99790763,200.09,200.04,4.33035697]
[1756732484273,74.8082646,200.09,200.05,3.72873726]
[1756732484473,75.5182646,200.09,200.06,3.72873726]
[1756732484777,75.5182646,200.09,200.07,3.72873726]
[1756732485082,75.5182646,200.09,200.08,3.72873726]
[1756732485584,74.8082646,200.09,200.08,3.72873726]
[1756732486959,65.6,200.09,200.08,3.72873726]
[1756732490094,0.14216157,200.13,200.08,4.42873726]
[1756732490292,39.6,200.12,200.09,4.42873726]
[1756732490497,0.03,200.15,200.11,4.21035697]
[1756732490801,26.0,200.13,200.12,4.42873726]
[1756732490974,0.03,200.15,200.12,3.72873726]
[1756732491175,43.84035697,200.15,200.13,3.72873726]
[1756732491377,43.84035697,200.15,200.14,3.72873726]
[1756732491576,39.63,200.15,200.14,3.72873726]
[1756732493881,0.03,200.15,200.14,3.72873726]
[1756732494088,0.03,200.15,200.14,4.42873726]
[1756732494280,0.03,200.15,200.14,8.63909423]
[1756732494484,0.03,200.15,200.14,4.91035697]
[1756732494798,0.03,200.15,200.14,8.63420787]
[1756732495393,0.03,200.15,200.14,8.63352843]
[1756732495601,0.03,200.15,200.14,4.42317146]
[1756732501084,0.03,200.15,200.14,13.63003087]
[1756732501287,0.03,200.15,200.14,3.72317146]
[1756732501486,4.95035697,200.15,200.14,3.72317146]
[1756732502202,9.94660978,200.15,200.14,3.72317146]
[1756732502400,9.23660978,200.15,200.14,3.72317146]
[1756732503000,23.68436536,200.15,200.14,3.72317146]
[1756732503501,58.89244936,200.15,200.14,3.72317146]
[1756732503889,13.73775558,200.14,200.09,0.7]
[1756732504088,39.56,200.13,200.1,3.72380726]
[1756732504287,19.44475737,200.12,200.11,3.72380726]
[1756732504494,13.73775558,200.11,200.08,0.12]
[1756732504726,53.29775558,200.1,200.09,3.72500974]
[1756732505209,13.59559401,200.09,200.08,0.12]
[1756732505423,13.59559401,200.09,200.08,1e-08]
[1756732505424,17.94811255,200.09,200.08,1e-08]
[1756732505587,13.73775558,200.06,200.05,0.12]
[1756732505787,57.50811255,200.06,200.05,0.12]
[1756732506099,58.17811255,200.06,200.05,0.12]
[1756732506326,63.17661299,200.06,200.05,0.12]
[1756732507713,39.73775558,200.04,200.01,0.12]
[1756732508002,83.50811255,200.04,200.01,0.12]
[1756732508210,89.17711274,200.04,200.01,0.12]
[1756732508987,22.15846952,200.02,200.01,0.12]
[1756732509186,0.14216157,200.0,199.95,0.12]
[1756732509495,48.79287551,200.0,199.95,0.12]
[1756732510292,53.79287551,200.0,199.95,0.12]
[1756732510610,9.35251854,200.0,199.97,0.82]
[1756732510918,64.51196955,200.0,199.97,0.82]
[1756732511926,64.51196955,200.0,199.99,0.82]
[1756732511927,26.0,200.0,199.99,0.82]
[1756732512221,69.79035697,200.0,199.99,0.82]
[1756732512587,69.79035697,200.0,199.99,0.12]
[1756732512782,69.79035697,200.0,199.99,0.82]
[1756732513324,65.58,200.0,199.99,0.82]
[1756732513489,69.79035697,200.0,199.99,0.82]
[1756732513825,84.98775558,200.0,199.99,0.12]
[1756732514013,89.19811255,200.0,199.99,0.12]
[1756732514188,63.19811255,200.0,199.99,0.12]
[1756732515219,69.41252852,200.0,199.99,0.12]
[1756732515791,64.53217155,200.0,199.99,0.12]
[1756732516514,65.20217155,200.0,199.99,0.12]
[1756732516808,69.41252852,200.0,199.99,0.12]
[1756732517417,69.41252852,200.0,199.99,3.84609098]
[1756732518086,64.53217155,200.0,199.99,3.84609098]
[1756732518290,65.20217155,200.0,199.99,3.84609098]
[1756732518514,69.41252852,200.0,199.99,3.84609098]
[1756732519398,30.35251854,199.98,199.97,0.12]
[1756732519602,69.93251854,199.98,199.97,0.12]
[1756732519790,70.60251854,199.98,199.97,0.12]
[1756732520005,30.35251854,199.98,199.97,0.12]
[1756732520200,48.9486126,199.98,199.97,0.12]
[1756732520401,74.93301859,199.98,199.97,0.12]
[1756732520615,88.5286126,199.98,199.97,0.12]
[1756732521223,48.9486126,199.98,199.97,0.12]
[1756732521416,88.5286126,199.98,199.97,0.12]
[1756732523107,48.9486126,199.98,199.97,0.12]
[1756732523320,43.94811255,199.98,199.97,0.12]
[1756732523503,43.94811255,199.98,199.97,0.82]
[1756732523706,2.004058,199.98,199.97,0.82]
[1756732523908,45.79441497,199.98,199.97,0.82]
[1756732524107,4.21035697,199.98,199.97,0.82]
[1756732524311,39.58,199.98,199.97,0.82]
[1756732524901,35.21182697,200.0,199.97,0.82]
[1756732525213,39.58,199.99,199.97,0.82]
[1756732525829,5.000956,200.01,199.97,5.82066931]
[1756732526043,4.99779307,200.09,200.0,4.21035697]
[1756732526240,24.07035697,200.08,200.02,4.21035697]
[1756732526403,24.07035697,200.08,200.03,0.7]
[1756732526904,24.07035697,200.08,200.02,4.21035697]
[1756732527223,29.06841661,200.08,200.04,0.7]
[1756732527928,29.06841661,200.08,200.02,9.20967623]
[1756732528135,4.21035697,200.07,200.04,0.7]
[1756732529412,4.21035697,200.05,200.01,0.7]
[1756732529615,4.21035697,200.04,200.01,0.7]
[1756732529819,40.23,200.06,200.01,0.7]
[1756732530024,4.21035697,200.04,200.01,0.7]
[1756732530320,4.21035697,200.04,200.0,0.7]
[1756732530529,0.14216157,200.05,200.01,0.7]
[1756732530843,43.77035697,200.04,199.99,4.91035697]
[1756732531126,4.21035697,200.03,200.0,0.7]
[1756732531342,4.21035697,200.02,199.98,0.7]
[1756732531507,4.21035697,200.02,199.97,4.33035697]
[1756732531707,4.21035697,200.02,199.99,0.12]
[1756732531925,4.21035697,200.02,199.99,0.82]
[1756732532603,4.21035697,200.02,199.99,0.12]
[1756732532807,43.77035697,200.04,200.0,0.7]
[1756732533007,26.0,200.04,200.01,4.21035697]
[1756732533202,26.0,200.04,200.02,0.7]
[1756732533423,26.0,200.04,200.01,9.2099716]
[1756732533625,133.93,200.07,200.03,0.7]
[1756732533932,0.03,200.07,200.04,4.91035697]
[1756732534121,0.03,200.07,200.05,0.7]
[1756732534936,0.03,200.07,200.06,0.71]
[1756732535109,0.03,200.07,200.06,4.92035697]
[1756732535317,0.03,200.07,200.06,9.91885741]
[1756732536522,0.03,200.07,200.06,24.93499941]
[1756732537016,0.03,200.12,200.06,37.43125053]
[1756732537339,0.03,200.12,200.11,4.21035697]
[1756732537634,0.03,200.12,200.11,9.20760848]
[1756732537830,0.03,200.12,200.11,9.91760848]
[1756732538036,0.03,200.12,200.09,4.99753508]
[1756732538242,0.03,200.12,200.08,4.21035697]
[1756732538439,0.03,200.12,200.1,4.21035697]
[1756732538925,0.03,200.12,200.09,0.71]
[1756732539142,0.03,200.12,200.1,4.21035697]
[1756732539314,0.03,200.12,200.11,4.21035697]
[1756732539508,0.03,200.12,200.09,0.71]
[1756732539726,0.03,200.12,200.11,4.21035697]
[1756732540237,0.03,200.12,200.11,4.92035697]
[1756732542123,0.03,200.12,200.11,5.70725151]
[1756732542324,0.03,200.12,200.11,9.91760848]
[1756732545524,0.03,200.12,200.11,24.92999348]
[1756732547921,0.03,200.12,200.11,64.44999348]
[1756732548117,0.03,200.12,200.11,24.92999348]
[1756732548545,0.03,200.12,200.11,64.44999348]
[1756732549745,1e-08,200.12,200.11,64.44999348]
[1756732549951,1e-08,200.12,200.11,78.04558749]
[1756732550130,1e-08,200.12,200.11,72.33833598]
[1756732550337,1e-08,200.12,200.11,72.9802227]
[1756732551444,1e-08,200.12,200.11,77.97747421]
[1756732551643,1e-08,200.12,200.11,62.96508921]
[1756732551841,1e-08,200.12,200.11,64.96624021]
[1756732552356,1e-08,200.12,200.11,65.55624021]
[1756732552647,1e-08,200.12,200.11,61.34588324]
[1756732552841,1e-08,200.12,200.11,65.55624021]
[1756732559570,1e-08,200.12,200.11,6.99840251]
[1756732559854,1e-08,200.12,200.11,74.70760848]
[1756732560752,1e-08,200.12,200.11,75.20733363]
[1756732560941,1e-08,200.12,200.11,75.79733363]
[1756732561646,1e-08,200.12,200.11,89.53508921]
[1756732561848,0.03,200.17,200.12,13.59559401]
[1756732562052,0.03,200.17,200.16,4.21035697]
[1756732562252,0.68,200.17,200.16,43.71035697]
[1756732562968,0.68,200.17,200.16,39.5]
[1756732563139,0.68,200.17,200.16,4.21035697]
[1756732563344,0.68,200.17,200.16,48.70636016]
[1756732568151,0.68,200.17,200.16,9.20636016]
[1756732568365,0.68,200.17,200.16,48.68636016]
[1756732569051,0.68,200.17,200.16,4.99600319]
[1756732569259,0.68,200.17,200.16,48.68636016]
[1756732572540,4.89035697,200.17,200.15,0.12]
[1756732572762,4.21035697,200.16,200.15,0.12]
[1756732572950,0.68,200.17,200.15,0.12]
[1756732573150,0.68,200.16,200.15,0.12]
[1756732574672,0.68,200.16,200.15,5.11625281]
[1756732575479,0.68,200.16,200.15,0.12]
[1756732576475,36.02852173,200.16,200.15,0.12]
[1756732578975,49.62411574,200.16,200.15,0.12]
[1756732579568,52.98599072,200.16,200.15,0.12]
[1756732580875,92.46599072,200.16,200.15,0.12]
[1756732581258,52.98599072,200.16,200.15,0.12]
[1756732581489,48.77563375,200.16,200.15,0.12]
[1756732581786,89.10411574,200.16,200.15,0.12]
[1756732582158,92.46496127,200.16,200.15,0.12]
[1756732583958,39.59559401,200.13,200.12,0.12]
[1756732584159,83.28595098,200.13,200.12,0.12]
[1756732584371,83.96595098,200.13,200.12,0.12]
[1756732585973,88.96270309,200.13,200.12,0.12]
[1756732587180,89.10486466,200.13,200.12,0.12]
[1756732587791,92.46242063,200.13,200.12,0.12]
[1756732588908,147.63775558,200.12,200.1,0.12]
[1756732589100,39.73775558,200.08,200.07,0.12]
[1756732589301,83.42811255,200.08,200.07,0.12]
[1756732589605,84.10811255,200.08,200.07,0.12]
[1756732590288,89.10611334,200.08,200.07,0.12]
[1756732593308,49.62611334,200.08,200.07,0.12]
[1756732593591,89.10611334,200.08,200.07,0.12]
[1756732594167,49.62611334,200.08,200.07,0.12]
[1756732594367,89.10611334,200.08,200.07,0.12]
[1756732596879,89.10611334,200.08,200.07,1e-08]
[1756732597067,89.10611334,200.08,200.04,0.12]
[1756732597068,39.73775558,200.05,200.04,0.12]
[1756732597270,83.40811255,200.05,200.04,0.12]
[1756732597466,13.73775558,200.04,200.02,0.12]
[1756732597676,57.40811255,200.03,200.02,0.12]
[1756732597891,58.07811255,200.03,200.02,0.12]
[1756732598972,63.07736266,200.03,200.02,0.12]
[1756732599290,58.86700569,200.03,200.02,0.12]
[1756732599499,63.07736266,200.03,200.02,0.12]
[1756732600295,23.61736266,200.03,200.02,0.12]
[1756732600478,63.07736266,200.03,200.02,0.12]
[1756732601372,23.61736266,200.03,200.02,0.12]
[1756732601571,63.07736266,200.03,200.02,0.12]
[1756732601773,23.61736266,200.03,200.02,0.12]
[1756732601999,63.07736266,200.03,200.02,0.12]
[1756732603001,23.61736266,200.03,200.02,0.12]
[1756732603388,63.07736266,200.03,200.02,0.12]
[1756732604090,30.35251854,200.0,199.97,0.12]
[1756732604294,87.61846952,200.0,199.97,0.12]
[1756732604492,13.73775558,199.99,199.97,0.12]
[1756732604792,57.40811255,199.98,199.97,0.12]
[1756732605007,58.07811255,199.98,199.97,0.12]
[1756732605197,63.0786126,199.98,199.97,0.12]
[1756732605705,13.59559401,199.96,199.95,0.12]
[1756732605893,57.40811255,199.96,199.95,0.12]
[1756732606215,58.07811255,199.96,199.95,0.12]
[1756732606419,57.40811255,199.96,199.95,0.12]
[1756732606916,58.07811255,199.96,199.95,0.12]
[1756732607117,57.40811255,199.96,199.95,0.12]
[1756732607280,62.40911275,199.96,199.95,0.12]
[1756732607600,39.60216157,199.96,199.95,0.71]
[1756732607804,39.46,199.96,199.95,0.71]
[1756732608119,39.46,199.97,199.95,0.71]
[1756732608277,43.67035697,199.97,199.95,0.12]
[1756732608477,17.94811255,199.96,199.95,0.12]
[1756732608700,18.61811255,199.96,199.95,0.12]
[1756732609507,23.61911275,199.96,199.95,0.12]
[1756732610183,19.40875578,199.96,199.95,0.12]
[1756732610378,23.61911275,199.96,199.95,0.12]
[1756732611900,25.62367375,199.96,199.95,0.12]
[1756732612917,20.74331678,199.96,199.95,0.12]
[1756732613095,65.08367375,199.96,199.95,0.12]
[1756732614681,64.41367375,199.96,199.95,0.12]
[1756732615302,24.81151218,199.96,199.95,0.12]
[1756732615507,90.27151218,199.96,199.95,0.12]
[1756732615717,64.41367375,199.96,199.95,0.12]
[1756732616805,65.08367375,199.96,199.95,0.12]
[1756732617598,64.41367375,199.96,199.95,0.12]
[1756732619806,64.41367375,199.96,199.95,0.71]
[1756732620019,64.41367375,199.96,199.95,0.12]
[1756732620223,2.14672257,199.96,199.95,0.71]
[1756732620393,0.14216157,199.96,199.95,0.71]
[1756732620715,39.60216157,199.96,199.95,0.71]
[1756732620889,65.60216157,199.96,199.95,0.71]
[1756732621090,69.81251854,199.96,199.95,0.71]
[1756732621298,89.07911275,199.96,199.95,0.12]
[1756732621596,90.41347175,199.96,199.95,0.12]
[1756732622315,81.20211458,199.96,199.95,0.12]
[1756732622517,90.41347175,199.96,199.95,0.12]
[1756732623598,86.20311478,199.96,199.95,0.12]
[1756732623809,86.87311478,199.96,199.95,0.12]
[1756732624011,91.08347175,199.96,199.95,0.12]
[1756732624891,50.95347175,199.96,199.95,0.12]
[1756732625096,90.41347175,199.96,199.95,0.12]
[1756732625628,32.35687754,199.96,199.95,0.12]
[1756732625794,39.46,199.96,199.95,0.71]
[1756732625998,6.21451597,199.97,199.95,0.71]
[1756732626216,39.46,199.96,199.95,0.71]
[1756732626393,39.46,199.96,199.95,0.12]
[1756732627132,39.46,199.96,199.95,0.71]
[1756732628199,43.67035697,199.96,199.95,0.12]
[1756732628718,39.46,199.96,199.95,0.71]
[1756732629019,0.03,199.97,199.95,0.71]
[1756732629223,39.44,199.96,199.95,0.12]
[1756732629715,39.44,199.96,199.95,0.71]
[1756732631424,39.44,199.96,199.95,0.12]
[1756732633400,63.10911275,199.96,199.95,0.12]
[1756732633699,13.73775558,199.94,199.93,0.12]
[1756732633916,13.73775558,199.94,199.92,0.12]
[1756732633917,13.73775558,199.93,199.92,0.12]
[1756732634100,22.87846952,199.93,199.92,0.12]
[1756732635408,27.88022013,199.93,199.92,0.12]
[1756732635611,27.88022013,199.93,199.92,1e-08]
[1756732635816,27.88022013,199.93,199.91,0.12]
[1756732636121,13.73775558,199.87,199.79,0.59]
[1756732636299,57.38811255,199.87,199.79,0.59]
[1756732636504,58.10811255,199.87,199.79,0.59]
[1756732636698,67.32402955,199.87,199.8,0.59]
[1756732637128,67.32402955,199.87,199.82,0.59]
[1756732637129,27.16402955,199.87,199.82,0.59]
[1756732637427,72.32728166,199.87,199.82,0.59]
[1756732638807,72.32728166,199.87,199.8,0.59]
[1756732639310,72.32728166,199.87,199.78,9.21582861]
[1756732639521,68.11692469,199.87,199.81,0.59]
[1756732639727,72.32728166,199.87,199.81,0.59]
[1756732640105,72.32728166,199.87,199.78,4.21035697]
[1756732640106,69.79251854,199.87,199.84,0.59]
[1756732640317,74.79577065,199.87,199.81,5.00472598]
[1756732640621,93.39658966,199.87,199.82,0.59]
[1756732641714,48.95333755,199.87,199.82,0.59]
[1756732642033,88.39333755,199.87,199.83,0.59]
[1756732642425,93.39658966,199.87,199.8,5.00500095]
[1756732642609,94.11658966,199.87,199.81,0.59]
[1756732642923,93.39658966,199.87,199.81,0.59]
[1756732643306,94.11658966,199.87,199.81,0.59]
[1756732643511,68.11658966,199.87,199.79,0.59]
[1756732643719,68.11658966,199.87,199.77,5.00570957]
[1756732643906,68.11658966,199.87,199.76,0.59]
[1756732644112,68.11658966,199.87,199.74,0.59]
[1756732644113,0.14216157,199.78,199.74,0.59]
[1756732644323,43.65035697,199.77,199.75,0.59]
[1756732644517,39.44,199.77,199.76,0.59]
[1756732645232,39.44,199.77,199.73,0.59]
[1756732645535,43.65035697,199.77,199.73,0.59]
[1756732645738,4.21035697,199.76,199.74,0.59]
[1756732645921,43.65035697,199.77,199.74,0.59]
[1756732646435,43.65035697,199.77,199.71,9.21755413]
[1756732646620,43.65035697,199.77,199.72,0.59]
[1756732646934,4.21035697,199.76,199.72,0.59]
[1756732647234,43.65035697,199.75,199.72,0.59]
[1756732648236,4.21035697,199.73,199.68,0.59]
[1756732648432,43.65035697,199.72,199.68,0.59]
[1756732648826,4.21035697,199.69,199.66,0.1]
[1756732649217,43.79251854,199.7,199.66,0.69]
[1756732649414,39.44,199.69,199.66,0.69]
[1756732649613,4.35251854,199.7,199.66,0.69]
[1756732649818,0.72,199.75,199.67,0.59]
[1756732650121,26.0,199.71,199.67,0.59]
[1756732650440,4.21035697,199.7,199.66,0.1]
[1756732651319,39.44,199.69,199.66,0.1]
[1756732651631,4.21035697,199.67,199.66,0.1]
[1756732651936,43.65035697,199.67,199.66,0.1]
[1756732652723,44.37035697,199.67,199.66,0.1]
[1756732653331,5.07251854,199.67,199.66,0.1]
[1756732653636,44.51251854,199.67,199.66,0.1]
[1756732654133,5.07251854,199.67,199.66,0.1]
[1756732654322,44.51251854,199.67,199.66,0.1]
[1756732655436,63.11637618,199.67,199.66,0.1]
[1756732655810,89.11637618,199.67,199.66,0.1]
[1756732656133,84.10811255,199.67,199.66,0.1]
[1756732657010,26.14216157,199.67,199.66,0.1]
[1756732657215,39.44,199.67,199.66,0.1]
[1756732657433,16.21183337,199.72,199.66,5.69851447]
[1756732657434,12.525671,199.72,199.66,5.69851447]
[1756732657628,4.35251854,199.71,199.66,5.69851447]
[1756732657830,0.69,199.74,199.68,4.21035697]
[1756732658041,39.44,199.72,199.68,4.21035697]
[1756732658244,39.44,199.72,199.68,4.80035697]
[1756732658619,12.524005,199.75,199.7,4.21035697]
[1756732658812,12.524005,199.75,199.66,17.62980065]
[1756732658813,39.44,199.74,199.66,17.62980065]
[1756732659037,39.44,199.74,199.71,4.21035697]
[1756732659236,39.44,199.74,199.71,9.80748051]
[1756732659817,39.44,199.74,199.7,4.21035697]
[1756732660017,39.44,199.74,199.71,0.59]
[1756732660212,39.44,199.74,199.71,4.21035697]
[1756732660445,13.59559401,199.8,199.73,4.21035697]
[1756732660654,39.44,199.79,199.74,4.21035697]
[1756732660821,39.44,199.79,199.75,4.80035697]
[1756732661024,39.44,199.79,199.74,4.21035697]
[1756732661220,39.44,199.79,199.75,0.59]
[1756732661442,4.90035697,199.78,199.72,0.59]
[1756732661643,4.90035697,199.78,199.73,4.21035697]
[1756732661818,39.44,199.79,199.69,0.59]
[1756732661819,4.35251854,199.75,199.69,0.59]
[1756732662022,43.65035697,199.74,199.69,4.80035697]
[1756732662245,44.34035697,199.74,199.69,4.80035697]
[1756732662449,4.21035697,199.73,199.68,4.21035697]
[1756732662645,4.21035697,199.73,199.67,9.2186206]
[1756732662834,4.21035697,199.72,199.67,9.2186206]
[1756732663038,44.34035697,199.71,199.66,9.3188321]
[1756732663247,30.21035697,199.68,199.66,0.1]
[1756732663443,4.21035697,199.67,199.66,0.1]
[1756732663753,18.63811255,199.67,199.66,0.1]
[1756732664130,14.42775558,199.67,199.66,0.1]
[1756732664566,18.63811255,199.67,199.66,0.1]
[1756732665072,2.007075,199.68,199.66,0.1]
[1756732665270,39.44,199.68,199.66,4.31035697]
[1756732665479,39.44,199.68,199.66,0.1]
[1756732665635,18.63811255,199.67,199.66,0.1]
[1756732666061,14.42775558,199.67,199.66,0.1]
[1756732666731,39.44,199.67,199.66,0.1]
[1756732666929,26.0,199.68,199.66,0.1]
[1756732667147,39.44,199.67,199.66,0.1]
[1756732667348,39.44,199.67,199.66,4.31035697]
[1756732667933,39.44,199.67,199.66,0.1]
[1756732668139,58.07811255,199.67,199.66,0.1]
[1756732668348,39.73775558,199.65,199.64,0.12]
[1756732668548,43.94811255,199.65,199.64,0.12]
[1756732668755,44.63811255,199.65,199.64,0.12]
[1756732669060,66.27216157,199.65,199.64,0.12]
[1756732669358,70.48251854,199.65,199.64,0.12]
[1756732669734,66.27216157,199.65,199.64,0.12]
[1756732670459,39.44,199.66,199.64,4.33035697]
[1756732670962,0.69,199.65,199.64,0.12]
[1756732671349,43.65035697,199.66,199.64,0.12]
[1756732671663,0.69,199.65,199.64,0.12]
[1756732672235,39.44,199.66,199.64,0.12]
[1756732672539,0.69,199.71,199.65,4.21035697]
[1756732672759,23.46,199.7,199.67,4.21035697]
[1756732672968,39.44,199.71,199.69,4.21035697]
[1756732673168,39.44,199.71,199.68,4.21035697]
[1756732673463,39.44,199.71,199.69,4.21035697]
[1756732673671,39.44,199.71,199.67,4.21035697]
[1756732673969,40.13,199.71,199.67,4.21035697]
[1756732674345,39.44,199.71,199.66,5.00851447]
[1756732674545,40.13,199.71,199.67,4.21035697]
[1756732674854,0.69,199.7,199.66,4.21035697]
[1756732675046,0.69,199.69,199.65,4.21035697]
[1756732675449,4.35251854,199.67,199.64,0.12]
[1756732675676,9.36078658,199.67,199.64,0.12]
[1756732675960,0.69,199.66,199.64,0.12]
[1756732676178,39.44,199.65,199.64,0.12]
[1756732676742,0.14216157,199.7,199.64,10.02936696]
[1756732677077,2.61622312,199.74,199.68,4.21035697]
[1756732677246,39.44,199.73,199.68,4.21035697]
[1756732677443,39.44,199.73,199.69,4.21035697]
[1756732677761,39.44,199.72,199.71,4.21035697]
[1756732678069,0.69,199.75,199.71,4.21035697]
[1756732678373,39.44,199.74,199.72,4.21035697]
[1756732678569,39.44,199.76,199.73,4.21035697]
[1756732678757,39.44,199.76,199.75,4.21035697]
[1756732678948,39.44,199.76,199.74,4.21035697]
[1756732679759,39.44,199.79,199.75,9.90652804]
[1756732679948,39.44,199.79,199.76,6.7425099]
[1756732680343,2.64530702,199.86,199.78,6.7425099]
[1756732680543,2.64530702,199.86,199.79,6.7425099]
[1756732680544,46.8725099,199.85,199.79,6.7425099]
[1756732681169,40.13,199.85,199.81,6.7425099]
[1756732681375,0.69,199.84,199.75,5.00617107]
[1756732681552,0.14216157,199.82,199.78,6.7425099]
[1756732681878,0.14216157,199.82,199.76,6.7425099]
[1756732681879,0.69,199.81,199.76,6.7425099]
[1756732682045,0.69,199.81,199.77,6.7425099]
[1756732682368,0.03,199.78,199.76,6.7425099]
[1756732682574,0.03,199.78,199.71,5.69726052]
[1756732682947,39.44,199.77,199.75,6.7425099]
[1756732683646,39.44,199.77,199.71,0.69]
[1756732683954,39.44,199.77,199.74,6.7425099]
[1756732684555,39.44,199.77,199.71,5.69721276]
[1756732684760,0.03,199.78,199.76,6.7425099]
[1756732684968,0.03,199.78,199.77,6.7425099]
[1756732685683,0.03,199.78,199.77,11.74826652]
[1756732685984,0.03,199.78,199.77,12.41826652]
[1756732686274,0.03,199.78,199.77,11.74826652]
[1756732687061,0.03,199.78,199.77,12.41826652]
[1756732688777,0.03,199.78,199.77,6.7425099]
[1756732689454,0.03,199.78,199.77,7.4125099]
[1756732689676,0.03,199.78,199.77,6.7425099]
[1756732691783,0.03,199.78,199.77,11.74826652]
[1756732691984,0.03,199.8,199.77,19.16077642]
[1756732692296,0.03,199.8,199.79,13.4850198]
[1756732692493,0.03,199.8,199.79,6.7425099]
[1756732692801,0.03,199.8,199.79,14.1450198]
[1756732693200,0.03,199.8,199.79,7.4025099]
[1756732693501,0.03,199.8,199.79,14.1450198]
[1756732694071,0.03,199.8,199.79,19.15027531]
[1756732694877,0.03,199.86,199.85,6.7425099]